Workbook

Sheet Tutorial
B1: Para el uso de eta hoja debe habilitar el calculo iterativo de Excel
A2: Calculo iterativo en Excel
B3: Si usa Excel 2010 o posterior, haga clic en Archivo > Opciones > Fórmulas
B4: Si usa Excel para Mac, haga clic en el menú Excel y, a continuación, haga clic en Preferencias > Cálculo.
B5: Si usa Excel 2007, haga clic en el botón Microsoft Office , en Opciones de Excel y luego en la categoría Fórmulas.
B6: En la sección Opciones de cálculo, active la casilla de verificación Habilitar cálculo iterativo
B7: Si usa un equipo Mac, haga clic en Usar cálculo iterativo.
A9: Trabajo realizado con el apoyo del Programa UNAM-DGAPA-PAPIME PE110517

Sheet Balance
B2: hi | D2: h0 | F2: T0 | H2: Ti | J2: Ts
B3: 1.26 | D3: 26.7 | F3: =F4/10 -> 15 | H3: =H4/10 -> 20 | J3: =J4 -> -10.50248246
F4: 150 | H4: 200 | J4: =((B3*((H3-J3)^(4/3)))/D3)-F3 -> -10.50248246
B8: ρ | D8: μ | F8: Cp | H8: Pr | J8: h | L8: L | N8: u∞ | P8: k
B9: =B10*0.1 -> 1.2 | D9: =D10*10^-7 -> 1.8e-05 | F9: =F10*0.1 -> 0.1 | H9: =H10*0.1 -> 0.7 | J9: =J10*0.1 -> 7 | L9: =L10*0.1 -> 30 | N9: =N10*0.1 -> 15 | P9: =P10*0.001 -> 0.026
B10: 12 | D10: 180 | F10: 1 | H10: 7 | J10: 70 | L10: 300 | N10: 150 | P10: 26
D12: Nux | F12: =integralPolinomica(0.000001,L9,L38)*(H9^J38) -> -14.27857923 | H12: =(P9/L9)*(D13/J38)*((B9*N9*L9/(D9))^J38)*(H9^J41) -> 26.74380034 | L12: =B9*N9*L9/D9 -> 30000000
D13: =IF(AND(CELL("contenido",D42)=1,CELL("contenido",F42)=1),0.3,0)+IF(AND(CELL("contenido",D42)=1,CELL("contenido",F42)=2),0.33,0)+IF(AND(CELL("contenido",D42)=2,CELL("contenido",F42)=1),0.9,0)+IF(AND(CELL("contenido",D42)=2,CELL("contenido",F42)=2),0.029,0) -> 0.029
H36: =CELL("contenido",B39:B40) -> Laminar
F37: Natural
F38: Forzada | J38: =IF(AND(CELL("contenido",D42)=1,CELL("contenido",F42)=1),J39,0)+IF(AND(CELL("contenido",D42)=1,CELL("contenido",F42)=2),L39,0)+IF(AND(CELL("contenido",D42)=2,CELL("contenido",F42)=1),J40,0)+IF(AND(CELL("contenido",D42)=2,CELL("contenido",F42)=2),L40,0) -> 0.8 | L38: =J38-1 -> -0.2
B39: Laminar | D39: 0.3 | F39: 0.33 | J39: 1 | L39: 0.5
B40: Turbulento | D40: 0.09 | F40: 0.029 | J40: 1 | L40: 0.8
J41: =IF(AND(CELL("contenido",D42)=1,CELL("contenido",F42)=1),J42,0)+IF(AND(CELL("contenido",D42)=1,CELL("contenido",F42)=2),L42,0)+IF(AND(CELL("contenido",D42)=2,CELL("contenido",F42)=1),J43,0)+IF(AND(CELL("contenido",D42)=2,CELL("contenido",F42)=2),L43,0) -> 0.3333333333
D42: 2 | F42: 2 | J42: 0.25 | L42: 0.3333333333
J43: 0.3333333333 | L43: 0.3333333333
A44: Trabajo realizado con el apoyo del Programa UNAM-DGAPA-PAPIME PE110517

Sheet Hoja1
B2: Calculo de hi | H2: Calculo de h0
